fUSD/lending_fUSD_20250602
["ID","MTS","AMOUNT","RATE_DAILY","PERIOD"]
[363728119,1748849464215,-420.0,0.00019863,2]
[363728120,1748849464223,-733.22,0.00019863,2]
[363728121,1748849464232,-420.0,0.00019863,2]
[363728122,1748849464241,-420.0,0.00019863,2]
[363728123,1748849464251,-1000.0,0.00019867,2]
[363728124,1748849464259,-653.551,0.00019877,2]
[363728125,1748849464268,-811.0,0.00019877,2]
[363728126,1748849464277,-1467.0,0.00019877,2]
[363728127,1748849464286,-557.0,0.00019877,2]
[363728128,1748849464295,-593.971,0.00019877,2]
[363728129,1748849464304,-1271.0,0.00019877,2]
[363728130,1748849464313,-973.717,0.00019877,2]
[363728131,1748849464322,-1157.0,0.00019877,2]
[363728132,1748849464332,-4075.0,0.00019877,2]
[363728133,1748849464341,-155.0,0.00019877,2]
[363728134,1748849464351,-289.136,0.00019877,2]
[363728135,1748849464360,-7010.0,0.00019877,2]
[363728136,1748849464369,-150.0,0.00019879,2]
[363728137,1748849464378,-150.0,0.00019893,2]
[363728138,1748849464388,-500.0,0.00019899,2]
[363728139,1748849464397,-2000.0,0.000199,2]
[363728140,1748849464407,-2000.0,0.000199,2]
[363728141,1748849464416,-2000.0,0.000199,2]
[363728142,1748849464425,-2000.0,0.000199,2]
[363728143,1748849464435,-2000.0,0.000199,2]
[363728144,1748849464445,-2000.0,0.000199,2]
[363728145,1748849464454,-2000.0,0.000199,2]
[363728146,1748849464463,-2000.0,0.000199,2]
[363728147,1748849464473,-2000.0,0.000199,2]
[363728148,1748849464483,-2000.0,0.000199,2]
[363728149,1748849464493,-500.0,0.000199,2]
[363728150,1748849464503,-504.5719,0.000199,2]
[363728151,1748849464513,-2609.03523496,0.000199,2]
[363728152,1748849464522,-194.57380222,0.000199,2]
[363728153,1748849464534,-824.03662986,0.000199,2]
[363728154,1748849464543,-2000.0,0.000199,7]
[363728155,1748849464555,-397.79172253,0.000199,2]
[363728156,1748849464566,-300.0,0.000199,7]
[363728157,1748849464576,-1000.0,0.000199,2]
[363728158,1748849464586,-17790.2356525,0.000199,2]
[363728159,1748849464596,-199.78647705,0.000199,2]
[363728160,1748849464606,-2205.57152063,0.000199,2]
[363728161,1748849464616,-3393.5588304,0.000199,2]
[363728162,1748849464625,-3595.87271346,0.000199,2]
[363728163,1748849464634,-6143.53983643,0.000199,2]
[363728164,1748849464644,-210.96940105,0.000199,3]
[363728165,1748849464654,-182.19146168,0.000199,2]
[363728166,1748849464663,-150.0,0.00019911,2]
[363728167,1748849464672,-150.0,0.00019928,2]
[363728168,1748849464684,-11438.05960433,0.0001993,2]
[363728169,1748849464694,-603.521455,0.0001993,2]
[363728170,1748849464707,-603.521455,0.0001993,2]
[363728171,1748849464717,-151.0,0.00019939,2]
[363728172,1748849464727,-202.439432,0.00019939,2]
[363728173,1748849464737,-363.138421,0.00019939,2]
[363728174,1748849464746,-363.138421,0.00019939,2]
[363728175,1748849464756,-150.0,0.00019947,2]
[363728176,1748849464766,-150.0,0.00019959,2]
[363728177,1748849464778,-177.747,0.00019959,2]
[363728178,1748849464788,-150.0,0.00019959,2]
[363728179,1748849464798,-150.0,0.00019959,2]
[363728180,1748849464808,-150.0,0.00019959,2]
[363728181,1748849464819,-150.0,0.00019962,2]
[363728182,1748849464829,-795.90281801,0.00019967,5]
[363728183,1748849464839,-2283.0,0.00019973,2]
[363728184,1748849464849,-500.0,0.00019973,2]
[363728185,1748849464859,-639.78957077,0.00019973,2]
[363728186,1748849464869,-157.224867,0.00019973,2]
[363728187,1748849464879,-500.0,0.00019973,2]
[363728188,1748849464888,-500.0,0.00019973,2]
[363728189,1748849464898,-500.0,0.00019973,2]
[363728190,1748849464908,-170.14778008,0.00019973,2]
[363728191,1748849464918,-500.9995513,0.00019973,2]
[363728192,1748849464927,-500.0,0.00019973,2]
[363728193,1748849464938,-476.45041215,0.00019973,2]
[363728194,1748849464947,-500.0,0.00019973,2]
[363728195,1748849464957,-503.90735411,0.00019973,2]
[363728196,1748849464966,-500.0,0.00019973,2]
[363728197,1748849464977,-501.1340971,0.00019973,2]
[363728198,1748849464987,-500.0,0.00019973,2]
[363728199,1748849464997,-500.0,0.00019973,2]
[363728200,1748849465007,-500.0,0.00019973,2]
[363728201,1748849465016,-500.0,0.00019973,2]
[363728202,1748849465026,-500.0,0.00019973,2]
[363728203,1748849465035,-500.0,0.00019973,2]
[363728204,1748849465044,-150.0,0.00019979,2]
[363728205,1748849465055,-558.32877589,0.0001999,2]
[363728206,1748849465066,-558.32877589,0.0001999,2]
[363728207,1748849465076,-151.0,0.00019995,2]
[363728208,1748849465086,-363.138421,0.00019995,2]
[363728209,1748849465096,-363.138421,0.00019995,2]
[363728210,1748849465106,-150.0,0.00019995,2]
[363728211,1748849465116,-300.0,0.00019995,2]
[363728212,1748849465125,-56473.72764855,0.00019996,2]
[363728213,1748849465138,-11256.56358123,0.00019996,2]
[363728214,1748849465165,-5489.40847301,0.00019996,2]
[363728215,1748849465177,-392.72164948,0.00019996,2]
[363728216,1748849465816,-420.0,0.00019178,2]
[363728217,1748849465826,-420.0,0.00019178,2]
[363728218,1748849465835,-351.4,0.00019315,2]
[363728219,1748849465844,-943.0,0.00019785,2]
[363728220,1748849465854,-21620.80558566,0.00019996,2]
[363728221,1748849465867,-340.81837414,0.00019996,2]
[363728222,1748849465879,-656.90474624,0.00019996,2]
[363728223,1748849465899,-384.81937997,0.00019205,2]
[363728224,1748849465910,-412.92273781,0.00019205,2]
[363728225,1748849465920,-3761.23879993,0.00019996,2]
[363728226,1748849465935,-897.75884237,0.00019996,2]
[363728227,1748849465946,-6497.61457129,0.00019996,2]
[363728228,1748849465956,-2133.51026171,0.00019996,2]
[363728229,1748849465966,-366.35297813,0.00019996,2]
[363728230,1748849465975,-3007.14290594,0.00019996,2]
[363728231,1748849467458,5000.0,0.00019078,2]
[363728232,1748849542442,8741.62985758,0.00018754,2]
[363728233,1748849542484,15158.37014242,0.00018754,2]
[363728235,1748849635410,154.32443,0.00019,6]
[363728236,1748849695671,154.32443,0.00019,6]
[363728238,1748849718972,153.285852,0.00019,6]
[363728239,1748849719295,153.285852,0.0001895,6]
[363728240,1748849731065,500.0,0.00018978,2]
[363728241,1748849737110,3608.8093,0.00018978,2]
[363728242,1748849755505,1000.0,0.00018978,2]
[363728243,1748849755609,218.73010097,0.00019,2]
[363728244,1748849755875,57.24003503,0.00019,6]
[363728245,1748849755901,97.08439597,0.00019,6]
[363728248,1748849776212,5000.0,0.00018326,2]
[363728249,1748849785567,218.73010097,0.00019,2]
[363728251,1748849973829,174.5,0.00018287,2]
[363728252,1748850011071,20353.53860775,0.00019,2]
[363728253,1748850060687,1000.0,0.00018268,2]
[363728254,1748850090853,434.85,0.00016334,2]
[363728255,1748850091237,434.85,0.00018598,2]
[363728256,1748850168206,189.68,0.00019,2]
[363728258,1748850185956,281.48,0.00013699,2]
[363728259,1748850251099,200.0,0.00018234,2]
[363728260,1748850359606,6000.0,0.00023,30]
[363728261,1748850421257,2000.0,0.000189,6]
[363728262,1748850421950,6000.0,0.00024,120]
[363728263,1748850475055,377.61,0.00018252,2]
[363728266,1748850551362,204.0,0.00018571,2]
[363728267,1748850572668,772.0,0.00018,2]
[363728271,1748850632120,-250.11859604,0.00019066,2]
[363728272,1748850632244,-149.88140396,0.00019066,2]
[363728273,1748850632255,-1200.0,0.00019066,2]
[363728274,1748850632265,-207.4,0.00019067,2]
[363728275,1748850632274,-1044.30060604,0.00019067,2]
[363728405,1748850638042,-4217.6,0.00019067,2]
[363728406,1748850638055,-2486.9200505,0.00019067,2]
[363728407,1748850638163,-840.84,0.00019067,2]
[363728408,1748850638200,-1036.01785492,0.00019067,2]
[363728409,1748850638232,-2353.37527564,0.00019067,2]
[363728410,1748850638346,-1038.0,0.00019067,2]
[363728591,1748850640101,-483.89494,0.00019001,2]
[363728593,1748850640112,-5301.13095992,0.00019067,2]
[363728595,1748850640123,-400.0,0.00019067,2]
[363728597,1748850640133,-188.43,0.00019068,3]
[363728599,1748850640142,-8785.01627466,0.00019078,2]
[363728615,1748850640301,-4911.17041816,0.00019078,2]
[363728617,1748850640311,-295.87500145,0.00019078,2]
[363728619,1748850640321,-163.10478402,0.00019078,2]
[363728621,1748850640331,-203589.8022,0.00019078,2]
[363728624,1748850640342,-285.37,0.00019149,2]
[363728626,1748850640352,-18318.18474695,0.0001916,2]
[363728628,1748850640363,-151.0,0.0001916,2]
[363728630,1748850640373,-151.0,0.0001916,2]
[363728632,1748850640383,-151.0,0.00019161,2]
[363728634,1748850640392,-151.0,0.00019161,2]
[363728636,1748850640402,-151.0,0.00019166,2]
[363728638,1748850640412,-151.0,0.00019166,2]
[363728640,1748850640422,-295.9,0.00019166,2]
[363728642,1748850640431,-300.0,0.00019166,2]
[363728644,1748850640441,-300.0,0.00019166,2]
[363728646,1748850640451,-300.0,0.00019166,2]
[363728648,1748850640460,-300.0,0.00019166,2]
[363728650,1748850640470,-300.0,0.00019166,2]
[363728652,1748850640479,-300.0,0.00019166,2]
[363728654,1748850640489,-239.66987959,0.00019166,2]
[363728656,1748850640498,-13696.1866928,0.00019169,2]
[363728658,1748850640507,-295.87500137,0.00019169,2]
[363728660,1748850640517,-151.0,0.00019178,2]
[363728662,1748850640526,-151.0,0.00019178,2]
[363728663,1748850640536,-151.0,0.00019178,2]
[363728666,1748850640545,-183.596308,0.00019178,2]
[363728668,1748850640555,-151.0,0.00019178,2]
[363728670,1748850640565,-151.0,0.00019178,2]
[363728672,1748850640575,-152.401211,0.00019178,2]
[363728673,1748850640584,-151.0,0.00019178,2]
[363728676,1748850640595,-151.0,0.00019178,2]
[363728678,1748850640604,-171.22387727,0.00019178,2]
[363728680,1748850640614,-151.0,0.00019178,2]
[363728682,1748850640623,-151.0,0.00019178,2]
[363728684,1748850640633,-151.0,0.00019178,2]
[363728686,1748850640643,-420.0,0.00019178,2]
[363728688,1748850640653,-217.96,0.00019178,2]
[363728689,1748850640662,-420.0,0.00019178,2]
[363728692,1748850640672,-420.0,0.00019178,2]
[363728694,1748850640683,-420.0,0.00019178,2]
[363728696,1748850640692,-420.0,0.00019178,2]
[363728698,1748850640702,-420.0,0.00019178,2]
[363728700,1748850640711,-420.0,0.00019178,2]
[363728701,1748850640721,-420.0,0.00019178,2]
[363728703,1748850640732,-420.0,0.00019178,2]
[363728705,1748850640741,-329.05424968,0.00019178,2]
[363728707,1748850640751,-3842.536554,0.00019178,2]
[363728709,1748850640761,-500.0,0.00019178,2]
[363728710,1748850640770,-2436.857433,0.00019178,2]
[363728711,1748850640780,-420.0,0.00019178,2]
[363728712,1748850640789,-420.0,0.00019178,2]
[363728713,1748850640799,-420.0,0.00019178,2]
[363728714,1748850640808,-183.957081,0.00019178,2]
[363728715,1748850640818,-155.46184694,0.00019178,2]
[363728716,1748850640828,-420.0,0.00019178,2]
[363728717,1748850640838,-420.0,0.00019178,2]
[363728718,1748850640852,-420.0,0.00019178,2]
[363728719,1748850640862,-420.0,0.00019178,2]
[363728721,1748850640876,-420.0,0.00019178,2]
[363728723,1748850640887,-420.0,0.00019178,2]
[363728725,1748850640896,-176.48950442,0.00019178,2]
[363728727,1748850640907,-428.61816983,0.00019178,2]
[363728729,1748850640917,-287.90774661,0.00019178,2]
[363728731,1748850640928,-420.0,0.00019178,2]
[363728733,1748850640938,-420.0,0.00019178,2]
[363728735,1748850640948,-420.0,0.00019178,2]
[363728738,1748850640959,-420.0,0.00019178,2]
[363728740,1748850640969,-5668.855341,0.00019178,2]
[363728742,1748850640979,-420.0,0.00019178,2]
[363728744,1748850640988,-420.0,0.00019178,2]
[363728746,1748850640998,-420.0,0.00019178,2]
[363728748,1748850641008,-420.0,0.00019178,2]
[363728750,1748850641018,-427.52690967,0.00019178,2]
[363728752,1748850641028,-420.0,0.00019178,2]
[363728754,1748850641038,-151.1279472,0.00019178,2]
[363728756,1748850641048,-394.74719168,0.00019178,2]
[363728758,1748850641058,-420.0,0.00019178,2]
[363728760,1748850641068,-484.01038983,0.00019178,2]
[363728762,1748850641078,-420.0,0.00019178,2]
[363728764,1748850641088,-420.0,0.00019178,2]
[363728766,1748850641100,-420.0,0.00019178,2]
[363728768,1748850641110,-426.10183833,0.00019178,2]
[363728770,1748850641120,-426.60793813,0.00019178,2]
[363728772,1748850641130,-420.0,0.00019178,2]
[363728774,1748850641140,-420.0,0.00019178,2]
[363728776,1748850641150,-420.0,0.00019178,2]
[363728779,1748850641162,-420.0,0.00019178,2]
[363728781,1748850641173,-420.0,0.00019178,2]
[363728783,1748850641183,-420.0,0.00019178,2]
[363728785,1748850641193,-481.52589181,0.00019178,2]
[363728787,1748850641203,-420.0,0.00019178,2]
[363728789,1748850641213,-420.0,0.00019178,2]
[363728791,1748850641223,-420.0,0.00019178,2]
[363728793,1748850641233,-420.0,0.00019178,2]
[363728795,1748850641244,-420.0,0.00019178,2]
[363728797,1748850641254,-420.0,0.00019178,2]
[363728799,1748850641264,-475.20575744,0.00019178,2]
[363728801,1748850641276,-420.0,0.00019178,2]
[363728803,1748850641286,-420.0,0.00019178,2]
[363728805,1748850641296,-420.0,0.00019178,2]
[363728807,1748850641305,-420.0,0.00019178,2]
[363728809,1748850641315,-420.0,0.00019178,2]
[363728811,1748850641325,-420.0,0.00019178,2]
[363728813,1748850641335,-420.0,0.00019178,2]
[363728815,1748850641346,-420.0,0.00019178,2]
[363728817,1748850641356,-424.11494331,0.00019178,2]
[363728819,1748850641366,-420.0,0.00019178,2]
[363728821,1748850641376,-247.76925168,0.00019178,2]
[363728823,1748850641387,-420.0,0.00019178,2]
[363728825,1748850641397,-420.0,0.00019178,2]
[363728828,1748850641407,-449.26,0.00019178,2]
[363728830,1748850641417,-420.0,0.00019178,2]
[363728832,1748850641427,-420.0,0.00019178,2]
[363728834,1748850641437,-422.86863618,0.00019178,2]
[363728836,1748850641446,-420.0,0.00019178,2]
[363728838,1748850641455,-183.94686764,0.00019178,2]
[363728840,1748850641465,-420.0,0.00019178,2]
[363728842,1748850641475,-420.0,0.00019178,2]
[363728844,1748850641484,-253.8,0.00019178,2]
[363728846,1748850641494,-420.0,0.00019178,2]
[363728848,1748850641504,-420.0,0.00019178,2]
[363728850,1748850641514,-206.95,0.00019178,2]
[363728852,1748850641524,-420.0,0.00019178,2]
[363728854,1748850641533,-366.38371323,0.00019178,2]
[363728856,1748850641543,-420.0,0.00019178,2]
[363728858,1748850641553,-420.0,0.00019178,2]
[363728860,1748850641563,-420.0,0.00019178,2]
[363728862,1748850641573,-420.0,0.00019178,2]
[363728864,1748850641582,-513.3,0.00019178,2]
[363728866,1748850641592,-420.0,0.00019178,2]
[363728868,1748850641602,-247.57903538,0.00019178,2]
[363728870,1748850641612,-420.0,0.00019178,2]
[363728872,1748850641625,-420.0,0.00019178,2]
[363728874,1748850641635,-180.85006672,0.00019178,2]
[363728876,1748850641645,-420.0,0.00019178,2]
[363728878,1748850641655,-229.24,0.00019178,2]
[363728880,1748850641665,-420.0,0.00019178,2]
[363728882,1748850641674,-425.07514845,0.00019178,2]
[363728884,1748850641685,-420.0,0.00019178,2]
[363728886,1748850641695,-420.0,0.00019178,2]
[363728888,1748850641705,-420.0,0.00019178,2]
[363728890,1748850641714,-433.34961774,0.00019178,2]
[363728892,1748850641724,-215.49118835,0.00019178,2]
[363728894,1748850641734,-420.0,0.00019178,2]
[363728896,1748850641744,-420.0,0.00019178,2]
[363728898,1748850641753,-420.0,0.00019178,2]
[363728900,1748850641763,-420.0,0.00019178,2]
[363728902,1748850641773,-420.0,0.00019178,2]
[363728904,1748850641784,-500.0,0.00019178,2]
[363728906,1748850641794,-420.0,0.00019178,2]
[363728909,1748850641804,-325.15514838,0.00019178,2]
[363728910,1748850641814,-420.0,0.00019178,2]
[363728912,1748850641824,-333.57,0.00019178,2]
[363728915,1748850641834,-420.0,0.00019178,2]
[363728917,1748850641845,-420.0,0.00019178,2]
[363728919,1748850641855,-420.0,0.00019178,2]
[363728921,1748850641866,-422.5538922,0.00019178,2]
[363728923,1748850641877,-420.0,0.00019178,2]
[363728925,1748850641887,-420.0,0.00019178,2]
[363728927,1748850641898,-420.0,0.00019178,2]
[363728929,1748850641908,-420.0,0.00019178,2]
[363728931,1748850641918,-420.0,0.00019178,2]
[363728933,1748850641928,-420.0,0.00019178,2]
[363728935,1748850641938,-420.0,0.00019178,2]
[363728937,1748850641948,-420.0,0.00019178,2]
[363728939,1748850641960,-420.0,0.00019178,2]
[363728941,1748850641970,-420.0,0.00019178,2]
[363728943,1748850641981,-420.0,0.00019178,2]
[363728945,1748850641992,-420.0,0.00019178,2]
[363728947,1748850642002,-420.0,0.00019178,2]
[363728949,1748850642013,-420.0,0.00019178,2]
[363728951,1748850642023,-420.0,0.00019178,2]
[363728953,1748850642033,-420.0,0.00019178,2]
[363728955,1748850642043,-420.0,0.00019178,2]
[363728958,1748850642054,-498.10545254,0.00019178,2]
[363728960,1748850642065,-420.0,0.00019178,2]
[363728962,1748850642075,-426.77719843,0.00019178,2]
[363728964,1748850642085,-420.0,0.00019178,2]
[363728965,1748850642100,-420.0,0.00019178,2]
[363728966,1748850642111,-420.0,0.00019178,2]
[363728967,1748850642122,-421.41594774,0.00019178,2]
[363728968,1748850642133,-420.0,0.00019178,2]
[363728969,1748850642144,-420.0,0.00019178,2]
[363728970,1748850642154,-420.0,0.00019178,2]
[363728971,1748850642169,-420.0,0.00019178,2]
[363728972,1748850642179,-417.12074529,0.00019178,2]
[363728973,1748850642191,-420.0,0.00019178,2]
[363728975,1748850642201,-425.29681768,0.00019178,2]
[363728976,1748850642211,-420.0,0.00019178,2]
[363728978,1748850642221,-420.0,0.00019178,2]
[363728979,1748850642231,-421.90951918,0.00019178,2]
[363728980,1748850642242,-421.33989667,0.00019178,2]
[363728981,1748850642253,-420.0,0.00019178,2]
[363728982,1748850642263,-342.87718354,0.00019178,2]
[363728984,1748850642273,-420.0,0.00019178,2]
[363728986,1748850642283,-184.92629254,0.00019178,2]
[363728988,1748850642293,-430.79556284,0.00019178,2]
[363728989,1748850642304,-420.0,0.00019178,2]
[363728990,1748850642314,-420.0,0.00019178,2]
[363728991,1748850642324,-419.32220386,0.00019178,2]
[363728992,1748850642334,-420.0,0.00019178,2]
[363728993,1748850642347,-430.59638299,0.00019178,2]
[363728994,1748850642357,-420.0,0.00019178,2]
[363728995,1748850642368,-420.0,0.00019178,2]
[363728996,1748850642378,-420.0,0.00019178,2]
[363728997,1748850642388,-424.3869953,0.00019178,2]
[363728998,1748850642399,-500.13279658,0.00019178,2]
[363728999,1748850642408,-514.45555693,0.00019178,2]
[363729000,1748850642418,-500.0,0.00019178,2]
[363729001,1748850642428,-420.0,0.00019178,2]
[363729002,1748850642438,-516.33,0.00019178,2]
[363729003,1748850642448,-459.46731375,0.00019178,2]
[363729004,1748850642458,-420.0,0.00019178,2]
[363729005,1748850642468,-312.28661881,0.00019178,2]
[363729006,1748850642478,-201.75172583,0.00019178,2]
[363729007,1748850642488,-420.0,0.00019178,2]
[363729008,1748850642498,-281.4640777,0.00019178,2]
[363729009,1748850642508,-420.0,0.00019178,2]
[363729010,1748850642518,-420.0,0.00019178,2]
[363729011,1748850642528,-181.73278548,0.00019178,2]
[363729012,1748850642538,-426.04024474,0.00019178,2]
[363729013,1748850642548,-420.0,0.00019178,2]
[363729014,1748850642558,-258.8502546,0.00019178,2]
[363729015,1748850642568,-420.0,0.00019178,2]
[363729016,1748850642579,-529.67669088,0.00019178,2]
[363729017,1748850642589,-420.0,0.00019178,2]
[363729018,1748850642601,-420.0,0.00019178,2]
[363729019,1748850642611,-429.16,0.00019178,2]
[363729020,1748850642621,-220.00887266,0.00019178,2]
[363729021,1748850642632,-512.1,0.00019178,2]
[363729022,1748850642642,-420.0,0.00019178,2]
[363729023,1748850642652,-151.03656357,0.00019178,2]
[363729024,1748850642662,-420.0,0.00019178,2]
[363729025,1748850642672,-210.24955835,0.00019178,2]
[363729026,1748850642683,-420.0,0.00019178,2]
[363729027,1748850642693,-420.0,0.00019178,2]
[363729028,1748850642703,-254.58,0.00019178,2]
[363729029,1748850642714,-734.61,0.00019178,2]
[363729030,1748850642726,-990.08,0.00019178,2]
[363729031,1748850642737,-2429.61,0.00019178,2]
[363729034,1748850642966,-420.0,0.00019178,2]
[363729035,1748850642976,-151.52190186,0.00019178,2]
[363729036,1748850642986,-463.6,0.00019178,2]
[363729037,1748850642996,-420.0,0.00019178,2]
[363729038,1748850643006,-420.0,0.00019178,2]
[363729039,1748850643015,-420.0,0.00019178,2]
[363729040,1748850643025,-420.0,0.00019178,2]
[363729041,1748850643035,-420.0,0.00019178,2]
[363729042,1748850643044,-481.25,0.00019178,2]
[363729043,1748850643054,-432.74911813,0.00019178,2]
[363729044,1748850643065,-420.0,0.00019178,2]
[363729045,1748850643075,-912.47,0.00019178,2]
[363729046,1748850643084,-420.0,0.00019178,2]
[363729047,1748850643094,-432.68463089,0.00019178,2]
[363729048,1748850643106,-1694.81,0.00019178,2]
[363729049,1748850643116,-399.62918961,0.00019178,2]
[363729050,1748850643126,-420.0,0.00019178,2]
[363729051,1748850643135,-296.82432281,0.00019178,2]
[363729052,1748850643145,-420.0,0.00019178,2]
[363729053,1748850643155,-432.7190515,0.00019178,2]
[363729054,1748850643169,-420.0,0.00019178,2]
[363729055,1748850643179,-420.0,0.00019178,2]
[363729056,1748850643188,-420.0,0.00019178,2]
[363729057,1748850643198,-420.0,0.00019178,2]
[363729058,1748850643209,-420.0,0.00019178,2]
[363729059,1748850643218,-876.44,0.00019178,2]
[363729060,1748850643228,-420.0,0.00019178,2]
[363729061,1748850643238,-850.35,0.00019178,2]
[363729062,1748850643249,-420.0,0.00019178,2]
[363729063,1748850643258,-420.0,0.00019178,2]
[363729064,1748850643268,-420.0,0.00019178,2]
[363729065,1748850643277,-536.53,0.00019178,2]
[363729067,1748850643287,-420.0,0.00019178,2]
[363729069,1748850643296,-484.83932782,0.00019178,2]
[363729071,1748850643306,-420.0,0.00019178,2]
[363729073,1748850643315,-420.0,0.00019178,2]
[363729074,1748850643324,-484.59695893,0.00019178,2]
[363729076,1748850643334,-420.0,0.00019178,2]
[363729077,1748850643344,-420.0,0.00019178,2]
[363729078,1748850643354,-552.3091287,0.00019178,2]
[363729079,1748850643363,-420.0,0.00019178,2]
[363729080,1748850643373,-249.78630435,0.00019178,2]
[363729081,1748850643382,-687.91,0.00019178,2]
[363729082,1748850643393,-420.0,0.00019178,2]
[363729083,1748850643402,-157.45,0.00019178,2]
[363729084,1748850643411,-653.05,0.00019178,2]
[363729085,1748850643421,-431.38570449,0.00019178,2]
[363729086,1748850643430,-420.0,0.00019178,2]
[363729087,1748850643439,-1597.4,0.00019178,2]
[363729088,1748850643449,-420.0,0.00019178,2]
[363729089,1748850643458,-495.79,0.00019178,2]
[363729090,1748850643467,-420.0,0.00019178,2]
[363729091,1748850643477,-420.0,0.00019178,2]
[363729092,1748850643486,-420.0,0.00019178,2]
[363729093,1748850643496,-420.0,0.00019178,2]
[363729094,1748850643506,-420.0,0.00019178,2]
[363729095,1748850643515,-420.0,0.00019178,2]
[363729096,1748850643524,-420.0,0.00019178,2]
[363729097,1748850643534,-2147.87,0.00019178,2]
[363729098,1748850643543,-500.0,0.00019178,2]
[363729099,1748850643552,-420.0,0.00019178,2]
[363729100,1748850643562,-389.2836694,0.00019178,2]
[363729101,1748850643572,-420.0,0.00019178,2]
[363729102,1748850643582,-420.0,0.00019178,2]
[363729103,1748850643592,-175.80742408,0.00019178,2]
[363729104,1748850643603,-420.0,0.00019178,2]
[363729105,1748850643612,-420.0,0.00019178,2]
[363729106,1748850643621,-420.0,0.00019178,2]
[363729107,1748850643631,-420.0,0.00019178,2]
[363729108,1748850643640,-420.0,0.00019178,2]
[363729109,1748850643650,-420.0,0.00019178,2]
[363729110,1748850643659,-420.0,0.00019178,2]
[363729111,1748850643669,-420.0,0.00019178,2]
[363729112,1748850643678,-728.8,0.00019178,2]
[363729113,1748850643688,-420.0,0.00019178,2]
[363729114,1748850643697,-555.66590223,0.00019178,2]
[363729115,1748850643707,-1213.74,0.00019178,2]
[363729116,1748850643716,-420.0,0.00019178,2]
[363729117,1748850643725,-420.0,0.00019178,2]
[363729118,1748850643735,-420.0,0.00019178,2]
[363729119,1748850643744,-2486.67,0.00019178,2]
[363729120,1748850643753,-790.11,0.00019178,2]
[363729121,1748850643763,-178.36578879,0.00019178,2]
[363729122,1748850643772,-420.0,0.00019178,2]
[363729123,1748850643782,-420.0,0.00019178,2]
[363729124,1748850643791,-420.0,0.00019178,2]
[363729125,1748850643800,-1023.06,0.00019178,2]
[363729126,1748850643809,-447.64117962,0.00019178,2]
[363729127,1748850643819,-190.01301444,0.00019178,2]
[363729128,1748850643828,-420.0,0.00019178,2]
[363729129,1748850643838,-420.0,0.00019178,2]
[363729130,1748850643849,-420.0,0.00019178,2]
[363729131,1748850643859,-420.0,0.00019178,2]
[363729132,1748850643868,-1016.4,0.00019178,2]
[363729133,1748850643878,-432.17,0.00019178,2]
[363729134,1748850643887,-1096.33,0.00019178,2]
[363729135,1748850643898,-2719.54,0.00019178,2]
[363729136,1748850643908,-150.02,0.00019178,2]
[363729137,1748850643917,-420.0,0.00019178,2]
[363729138,1748850643927,-420.0,0.00019178,2]
[363729139,1748850643936,-420.0,0.00019178,2]
[363729140,1748850643945,-1196.57,0.00019178,2]
[363729141,1748850643955,-420.0,0.00019178,2]